bitfinex/quotes_ETHUSD_20250519
["timestamp","ask_amount","ask_price","bid_price","bid_amount"]
[1747664419419,9.585,2441.1,2440.9,4.09672156]
[1747664419652,9.585,2441.1,2440.9,4.09675561]
[1747664419836,9.585,2441.1,2440.8,4.09698033]
[1747664420346,9.585,2441.1,2440.7,4.09711113]
[1747664420541,9.585,2441.1,2440.1,1.5083]
[1747664420709,4.09701337,2440.9,2440.4,4.09767643]
[1747664421449,0.55,2441.0,2440.1,1.5083]
[1747664421642,0.55,2441.0,2440.2,0.560666]
[1747664421845,4.64669266,2441.0,2440.5,4.09742846]
[1747664422007,4.09685395,2440.9,2440.4,4.09759882]
[1747664422212,4.0969562,2440.9,2440.3,4.09775174]
[1747664422413,4.64675404,2441.0,2440.5,4.09751819]
[1747664422633,4.09658637,2441.1,2440.2,4.65865553]
[1747664422837,9.582,2440.9,2440.3,0.61669555]
[1747664423012,9.582,2440.9,2440.8,4.09701737]
[1747664423947,9.582,2440.9,2440.1,5.60646896]
[1747664423948,1.5293,2441.2,2441.0,4.09658236]
[1747664424246,1.5293,2441.2,2440.5,4.09742512]
[1747664424445,1.5293,2441.2,2440.7,4.09708923]
[1747664424446,5.62580988,2441.2,2440.7,4.09708923]
[1747664424960,1.5293,2441.2,2440.4,4.09764625]
[1747664425115,5.65526114,2441.8,2441.2,4.09625105]
[1747664425451,13.67560242,2441.7,2441.2,4.09631499]
[1747664426149,1.5598,2441.8,2440.9,0.04096448]
[1747664426354,5.6552106,2441.8,2441.4,4.09599717]
[1747664426559,4.09567864,2441.6,2440.7,9.604]
[1747664426856,5.6552106,2441.8,2441.0,4.0966028]
[1747664426857,4.09585041,2441.5,2441.0,4.0966028]
[1747664427221,4.095752,2441.6,2441.1,4.09650803]
[1747664427423,4.09592349,2441.5,2440.9,4.09678708]
[1747664427628,4.09592349,2441.5,2441.0,4.0966414]
[1747664427971,4.096461,2441.2,2440.8,1.11139]
[1747664428136,4.09671118,2441.0,2440.4,4.09761761]
[1747664428456,5.64822467,2441.2,2440.5,0.56105176]
[1747664428640,9.5518,2441.2,2440.7,4.09706134]
[1747664428840,4.09682289,2441.0,2440.3,1.5129]
[1747664429045,4.09682289,2441.0,2440.4,4.09756867]
[1747664429359,0.01129817,2441.0,2440.3,1.5129]
[1747664429557,4.09668168,2441.0,2440.3,4.09775134]
[1747664429856,4.09702341,2440.8,2440.3,4.09775134]
[1747664430061,4.09702341,2440.8,2440.2,4.09795941]
[1747664430266,4.09702341,2440.8,2440.2,4.66792535]
[1747664430420,4.0972748,2440.7,2440.2,0.56996594]
[1747664430755,4.0972748,2440.7,2439.7,4.09882363]
[1747664430756,0.55,2440.5,2439.6,1.6296]
[1747664430960,15.48941526,2440.7,2439.4,0.31148147]
[1747664430961,0.55,2440.1,2439.4,0.31148147]
[1747664431146,0.55,2440.1,2438.9,2.29626667]
[1747664431147,10.124,2440.1,2439.2,4.09964229]
[1747664431347,14.22229135,2440.1,2439.2,4.09964229]
[1747664431659,14.22229135,2440.1,2439.4,4.09928606]
[1747664431660,4.09847985,2440.0,2439.4,4.09928606]
[1747664431856,13.67152975,2439.9,2439.4,4.099284]
[1747664432052,9.573,2439.9,2439.5,4.09914806]
[1747664432346,9.573,2439.9,2439.3,0.40996423]
[1747664432553,9.573,2439.9,2439.0,9.574]
[1747664432736,0.56129817,2439.8,2439.1,0.12805483]
[1747664432935,9.573,2439.9,2439.5,4.09911812]
[1747664433460,0.55,2439.6,2438.9,0.66666667]
[1747664433667,1.6449,2439.2,2438.9,0.66666667]
[1747664433900,9.573,2439.1,2438.9,0.66666667]
[1747664434250,9.573,2439.1,2439.0,4.100041]
[1747664434450,9.572,2439.4,2439.0,0.88669124]
[1747664434946,9.572,2439.4,2438.9,0.66666667]
[1747664435387,4.09939817,2439.4,2438.9,0.66666667]
[1747664435547,9.571,2439.3,2438.9,0.66666667]
[1747664435748,4.0999451,2439.1,2438.9,0.66666667]
[1747664435966,9.571,2439.3,2438.9,0.66666667]
[1747664436148,4.100041,2439.0,2438.9,0.66666667]
[1747664436349,14.23833917,2439.0,2438.9,0.66666667]
[1747664436562,15.811441,2439.0,2438.9,0.66666667]
[1747664436773,23.811441,2439.0,2438.9,0.66666667]
[1747664437292,24.11883391,2439.0,2438.9,0.66666667]
[1747664437789,33.382441,2439.0,2438.9,0.66666667]
[1747664437958,33.382441,2439.0,2438.0,0.66666667]
[1747664437959,4.10155448,2438.1,2438.0,0.66666667]
[1747664438285,9.57,2438.1,2438.0,0.66666667]
[1747664438593,13.67155448,2438.1,2438.0,0.66666667]
[1747664439648,9.57,2438.1,2438.0,0.66666667]
[1747664439885,13.67155448,2438.1,2438.0,0.66666667]
[1747664440193,22.22155448,2438.1,2438.0,0.66666667]
[1747664440392,28.40881506,2438.1,2438.0,0.66666667]
[1747664441074,33.36285448,2438.1,2438.0,0.66666667]
[1747664441286,12.10155448,2438.1,2438.0,0.66666667]
[1747664441448,4.10097658,2438.5,2438.0,0.66666667]
[1747664441648,0.31037492,2438.5,2438.0,0.66666667]
[1747664441854,4.10104986,2438.4,2438.0,0.66666667]
[1747664442155,4.10132975,2438.3,2438.0,0.66666667]
[1747664442350,4.10127105,2438.3,2438.0,0.66666667]
[1747664442552,4.10104986,2438.4,2438.0,0.66666667]
[1747664442771,4.10152875,2438.2,2438.0,0.66666667]
[1747664443889,23.81485265,2438.1,2438.0,0.66666667]
[1747664444090,4.65155448,2438.1,2438.0,0.66666667]
[1747664444610,4.10155448,2438.1,2438.0,0.66666667]
[1747664444803,19.152,2438.2,2438.0,0.66666667]
[1747664444804,4.65146796,2438.2,2438.0,0.66666667]
[1747664444969,19.151,2438.4,2438.1,4.1015283]
[1747664445166,19.151,2438.4,2438.0,4.76831673]
[1747664445396,19.151,2438.4,2438.0,0.66666667]
[1747664445575,19.151,2438.4,2438.2,4.10132546]
[1747664445774,4.10133506,2438.3,2438.0,0.66666667]
[1747664445963,4.10129632,2438.3,2438.0,0.66666667]
[1747664446162,19.151,2438.4,2438.0,0.66666667]
[1747664446365,23.2521474,2438.4,2438.0,0.66666667]
[1747664446563,4.1011474,2438.4,2438.0,0.66666667]
[1747664446764,4.10088865,2438.5,2438.1,5.72453873]
[1747664446765,0.31383802,2438.5,2438.1,5.72453873]
[1747664446960,4.41479265,2438.5,2438.1,5.72454037]
[1747664447190,4.10078408,2438.6,2438.1,1.623]
[1747664447491,4.1008503,2438.6,2438.1,5.72453499]
[1747664447710,0.30122667,2438.6,2438.2,4.10134784]
[1747664447877,1.5875,2438.7,2438.3,4.10110267]
[1747664448083,8.0,2438.9,2438.5,4.10075239]
[1747664448276,4.09951184,2439.4,2438.6,4.1006385]
[1747664448277,4.09999804,2439.1,2438.6,4.1006385]
[1747664448463,19.151,2439.0,2438.7,4.10041887]
[1747664448662,4.10031958,2438.9,2438.3,4.90410709]
[1747664448895,19.151,2439.0,2438.3,4.90410709]
[1747664448896,4.10040004,2438.8,2438.3,4.90406376]
[1747664449098,1.6436,2438.8,2438.1,9.623]
[1747664449300,0.55,2438.9,2438.3,4.10114474]
[1747664449568,0.55,2438.9,2438.2,4.10127863]
[1747664449569,23.25107266,2439.0,2438.5,4.10080821]
[1747664449799,4.10020911,2438.9,2438.2,4.10138626]
[1747664450001,19.151,2439.0,2438.4,4.10104986]
[1747664450303,19.151,2439.0,2438.6,4.10063147]
[1747664450504,0.30469653,2439.1,2438.7,4.10054537]
[1747664450672,0.30469653,2439.1,2439.0,4.100041]
[1747664451070,0.30469653,2439.1,2439.0,1.6462]
[1747664451299,4.09947516,2439.4,2439.0,1.6462]
[1747664451499,4.09947516,2439.4,2438.9,4.10017029]
[1747664451872,4.09947516,2439.4,2439.0,4.10002581]
[1747664452110,0.30060644,2439.5,2439.2,4.09968122]
[1747664452312,0.30060644,2439.5,2439.0,4.09994168]
[1747664452313,4.09904716,2439.6,2439.1,4.09979797]
[1747664452475,13.66289477,2439.7,2439.1,4.09987006]
[1747664452673,4.09910673,2439.6,2439.1,4.09987006]
[1747664452883,4.09892009,2439.7,2439.1,4.09987006]
[1747664453090,4.09909029,2439.6,2439.1,4.0997948]
[1747664453291,13.66275192,2439.8,2439.2,4.09969529]
[1747664453492,0.55,2439.5,2438.9,4.10014175]
[1747664453677,4.64930174,2439.5,2439.0,4.09999576]
[1747664454093,4.64930174,2439.5,2438.9,4.10014175]
[1747664454094,4.64910706,2439.6,2439.1,4.09972585]
[1747664454319,13.97047344,2439.8,2439.2,4.09955393]
[1747664454621,4.0989471,2439.7,2439.2,4.09963245]
[1747664454782,13.97040461,2439.8,2439.2,4.09970482]
[1747664455118,13.97040461,2439.8,2439.2,4.09969125]
[1747664455328,13.97040461,2439.8,2439.3,4.09946057]
[1747664455801,13.97040461,2439.8,2438.7,1.6462]
[1747664455802,0.55,2439.7,2438.7,1.6462]
[1747664456009,4.09937427,2439.4,2439.0,4.10001418]
[1747664456174,4.09927224,2439.5,2438.7,3.17929272]
[1747664456491,4.09910953,2439.6,2439.1,4.09978865]
[1747664456686,4.64889431,2439.7,2438.8,4.10030314]
[1747664456910,4.09943916,2439.4,2438.9,4.1000797]
[1747664457228,0.55,2439.5,2438.7,1.6462]
[1747664457579,4.64928847,2439.5,2439.0,4.09997041]
[1747664457778,4.64928847,2439.5,2439.0,4.09993207]
[1747664457980,4.09940152,2439.4,2439.0,4.09993207]
[1747664458283,4.64929586,2439.5,2439.1,4.09984035]
[1747664458602,4.64930821,2439.5,2439.0,4.09995131]
[1747664458999,4.64930821,2439.5,2439.1,4.09983821]
[1747664459179,11.214,2439.6,2439.2,4.09959575]
[1747664459380,4.09923213,2439.5,2439.1,4.09977492]
[1747664459588,0.55,2439.5,2438.7,1.6462]
[1747664459791,0.56129817,2439.5,2438.7,1.6462]
[1747664460022,0.56129817,2439.5,2438.7,5.74666488]
[1747664460212,4.09963477,2439.3,2438.8,4.10028999]
[1747664460413,13.65566112,2439.3,2438.7,1.6462]
[1747664460614,4.10010748,2439.0,2438.7,1.6462]
[1747664460823,4.10000599,2439.1,2438.6,4.10067935]
[1747664461113,9.99,2439.2,2438.9,4.10012383]
[1747664461282,9.99,2439.2,2438.9,4.10007264]
[1747664462126,0.55,2438.8,2438.0,0.66666667]
[1747664462419,4.65081305,2438.6,2438.1,4.10151961]
[1747664462582,9.554,2438.5,2438.2,4.10127649]
[1747664462782,9.554,2438.5,2438.1,4.10143318]
[1747664463015,9.554,2438.5,2438.0,0.66666667]
[1747664463197,9.554,2438.5,2438.4,4.10104986]
[1747664463394,9.554,2438.5,2438.1,4.10148712]
[1747664463599,9.554,2438.5,2438.0,0.66666667]
[1747664463779,9.554,2438.5,2438.1,4.10155448]
[1747664463986,9.554,2438.5,2438.2,4.10129433]
[1747664464606,9.554,2438.5,2438.3,4.10121626]
[1747664465220,9.554,2438.5,2438.2,4.10131221]
[1747664465411,9.554,2438.5,2438.1,4.10155448]
[1747664465717,9.554,2438.5,2438.2,4.1013806]
[1747664465922,9.554,2438.5,2438.0,4.76835248]
[1747664465923,9.554,2438.5,2438.1,4.1014606]
[1747664466325,19.544,2438.5,2438.0,0.66666667]
[1747664466623,23.95572536,2438.5,2438.0,4.76828267]
[1747664466987,19.544,2438.5,2438.4,4.10104986]
[1747664467188,19.2624,2439.2,2438.4,4.92115253]
[1747664467498,9.549,2439.1,2438.3,1.6486]
[1747664467703,9.549,2439.1,2438.4,4.10104986]
[1747664468042,9.549,2439.1,2438.9,4.10016998]
[1747664468190,9.549,2439.1,2438.6,4.10059189]
[1747664468191,13.64895752,2439.1,2438.6,4.10059189]
[1747664468392,9.549,2439.1,2438.6,4.10059189]
[1747664468826,9.549,2439.1,2438.7,4.10041108]
[1747664468993,4.10047785,2438.8,2438.3,5.74974375]
[1747664469192,5.66190911,2438.9,2438.4,4.10096952]
[1747664469193,1.5617,2438.9,2438.4,4.10096952]
[1747664469519,1.5617,2438.9,2438.2,4.10133829]
[1747664469520,4.10064848,2438.7,2438.2,4.10135706]
[1747664469712,4.10063951,2438.7,2438.2,4.10135706]
[1747664469883,0.55,2438.8,2438.3,4.10120153]
[1747664470085,0.55,2438.8,2438.4,4.10094406]
[1747664470309,4.1004056,2438.8,2438.4,4.10092299]
[1747664470511,15.20800442,2438.9,2438.4,4.10092299]
[1747664470695,15.20798677,2438.9,2438.4,4.10104657]
[1747664470899,15.20798677,2438.9,2438.5,4.10087938]
[1747664471214,15.20798677,2438.9,2438.4,4.10095206]
[1747664471429,15.20806573,2438.9,2438.4,4.10097712]
[1747664471630,9.545,2439.0,2438.5,0.04101027]
[1747664471811,1.6086,2439.2,2438.9,4.10011073]
[1747664472140,9.545,2439.3,2439.0,4.09992818]
[1747664472340,4.09988507,2439.1,2438.6,1.6296]
[1747664472549,4.09978509,2439.2,2438.7,4.10042261]
[1747664472909,13.64454891,2439.3,2438.9,4.10009081]
[1747664472910,9.545,2439.3,2438.9,4.10009081]
[1747664474243,9.545,2439.3,2439.0,4.10003958]
[1747664474741,9.555,2439.4,2439.1,4.09971319]
[1747664474945,19.097,2439.4,2439.1,4.09986558]
[1747664475131,19.097,2439.4,2438.6,5.73030044]
[1747664475132,23.19637274,2439.4,2439.0,4.09998001]
[1747664475331,4.09956015,2439.3,2438.8,4.10021631]
[1747664475542,19.097,2439.4,2438.6,5.73031204]
[1747664475742,19.097,2439.4,2439.1,4.09971873]
[1747664475956,9.555,2439.4,2439.3,4.09953675]
[1747664476163,11.1509,2439.8,2439.5,4.09910752]
[1747664476462,4.09879239,2439.8,2439.4,4.09936428]
[1747664476616,36.803,2439.9,2439.6,4.09901898]
[1747664476816,46.793,2439.9,2439.6,4.09901898]
[1747664477019,46.793,2439.9,2439.7,4.09870035]
[1747664477020,9.99,2439.9,2439.7,4.09870035]
[1747664477230,9.99,2439.9,2439.6,4.09895896]
[1747664477436,9.99,2439.9,2439.8,4.09869661]
[1747664477644,9.99,2439.9,2439.7,5.69432713]
[1747664477645,15.59213024,2440.5,2439.7,1.5955]
[1747664477850,4.09769658,2440.4,2439.9,4.0984502]
[1747664478056,15.5920975,2440.5,2440.0,4.0982468]
[1747664478348,11.4945,2440.5,2440.1,4.09810402]
[1747664478545,11.4945,2440.5,2439.7,1.5955]
[1747664478750,9.99,2440.5,2440.4,4.0976889]
[1747664478954,17.708,2441.1,2440.4,0.40976889]
[1747664478955,19.544,2441.0,2440.4,0.40976889]
[1747664479157,19.544,2441.0,2440.8,4.09688977]
[1747664479368,19.544,2441.0,2440.8,4.09698675]
[1747664479541,9.99,2441.0,2440.3,1.6435]
[1747664479727,9.99,2441.0,2440.9,4.09684952]
[1747664479929,14.39196139,2441.3,2440.8,4.09690539]
[1747664480144,9.99,2441.3,2440.9,1.5919]
[1747664480348,9.99,2441.3,2440.9,5.68869477]
[1747664480549,9.99,2441.5,2441.2,4.09618884]
[1747664480733,9.99,2441.7,2441.2,4.09621519]
[1747664480939,0.64038102,2442.8,2441.3,1.6531]
[1747664481122,0.21378566,2443.0,2441.3,1.6531]
[1747664481123,0.21378566,2443.0,2442.2,4.09455621]
[1747664481320,4.09373469,2442.8,2442.2,0.40945562]
[1747664481670,0.01129817,2442.7,2442.2,4.09460997]
[1747664481847,0.01129817,2442.7,2442.0,4.09500409]
[1747664481848,0.01129817,2442.9,2442.4,4.0942254]
[1747664482053,4.30711388,2443.0,2442.4,4.0942254]
[1747664482359,13.83824642,2443.0,2442.4,4.09425678]
[1747664482534,4.09376287,2442.8,2442.2,4.09462282]
[1747664483059,4.09376287,2442.8,2442.1,4.09481495]
[1747664483242,4.09356207,2442.9,2442.1,4.09481495]
[1747664483443,4.09356207,2442.9,2441.5,4.09580813]
[1747664483444,1.546,2442.8,2441.5,4.09580813]
[1747664483644,4.09415987,2442.6,2442.0,4.0949878]
[1747664484049,4.09419528,2442.5,2442.0,4.0949878]
[1747664484419,4.64405938,2442.6,2442.0,4.0949878]
[1747664484618,0.55,2442.6,2441.9,4.09510621]
[1747664484836,4.64404906,2442.6,2441.7,14.22123448]
[1747664485072,4.09442715,2442.4,2441.8,4.0953037]
[1747664485265,0.01129817,2442.5,2441.7,13.64634547]
[1747664485428,0.55,2442.4,2441.8,4.09533667]
[1747664485765,0.55,2442.4,2441.9,4.09515445]
[1747664485936,4.09433852,2442.4,2441.7,4.09545661]
[1747664486137,0.21370951,2444.0,2442.5,1.5266]
[1747664486351,0.21370951,2444.0,2443.5,4.09240793]
[1747664486537,5.87257328,2444.2,2443.5,4.09232884]
[1747664486740,1.5679,2444.2,2442.9,4.09349543]
[1747664486938,4.09148561,2444.1,2443.0,0.40934954]
[1747664487162,4.09197401,2443.9,2443.0,0.40934954]
[1747664487362,9.526,2444.0,2443.1,4.09300655]
[1747664487548,4.09246743,2443.6,2443.0,4.09323302]
[1747664487749,4.09226789,2443.7,2443.1,4.09303265]
[1747664487964,4.09245929,2443.6,2442.9,4.09346989]
[1747664488245,4.09249512,2443.5,2443.0,4.09332787]
[1747664488441,4.09273352,2443.4,2442.7,1.5266]
[1747664488646,1.5388,2443.5,2442.7,1.5266]
[1747664488647,4.09287186,2443.3,2442.8,4.093663]
[1747664488846,5.6314059,2443.5,2442.8,4.093663]
[1747664488847,4.09274529,2443.4,2442.8,4.093663]
[1747664489088,4.09274529,2443.4,2442.9,4.09347619]
[1747664489300,11.0618,2443.5,2443.1,4.09313999]
[1747664489589,11.0618,2443.5,2442.7,1.5266]
[1747664489754,11.0618,2443.5,2443.0,4.09322976]
[1747664489946,11.0618,2443.5,2443.1,4.09314761]
[1747664490146,9.523,2443.5,2442.3,17.99914989]
[1747664490368,1.6498,2443.2,2442.1,4.09475544]
[1747664490677,5.74280334,2443.2,2442.6,4.09391014]
[1747664490982,4.09317862,2443.1,2442.6,4.09398667]
[1747664491140,4.09333276,2443.0,2442.0,0.3059307]
[1747664491336,13.61453733,2442.9,2442.4,4.0942191]
[1747664491555,13.61460372,2442.9,2442.0,1.54515708]
[1747664491753,4.093663,2442.8,2442.3,4.09445102]
[1747664492084,13.6145721,2442.9,2442.4,4.43611259]
[1747664492292,9.521,2442.9,2442.5,0.34177384]
[1747664492459,13.61458555,2442.9,2442.5,0.34177384]
[1747664492778,4.09366651,2442.8,2442.5,0.34177384]
[1747664492987,21.77950491,2443.5,2442.5,0.34177384]
[1747664492988,1.5479,2444.5,2442.8,1.5156]
[1747664493145,1.5479,2444.5,2443.0,1.5156]
[1747664493344,4.09143115,2444.2,2443.1,19.74800038]
[1747664493559,4.09127823,2444.3,2443.6,4.09219716]
[1747664493895,4.09127823,2444.3,2443.2,4.09299279]
[1747664493896,4.09140102,2444.2,2443.7,4.09212986]
[1747664494101,4.09165956,2444.0,2443.1,0.56500038]
[1747664494399,19.202,2443.9,2443.4,4.09262643]
[1747664494597,1.55,2443.7,2443.0,1.5156]
[1747664494760,4.09242024,2443.6,2442.6,1.5415]
[1747664494961,4.09290527,2443.3,2442.5,0.34177384]
[1747664495163,9.696,2443.3,2443.0,4.09324475]
[1747664495492,9.696,2443.3,2443.0,4.09325392]
[1747664495693,9.696,2443.3,2443.1,4.09314628]
[1747664496004,9.696,2443.3,2443.0,4.0932374]
[1747664496173,9.696,2443.3,2443.1,4.09312764]
[1747664496384,9.696,2443.3,2443.0,4.0932374]
[1747664496910,9.696,2443.3,2443.1,0.3416899]
[1747664497702,13.78883728,2443.3,2443.1,0.3416899]
[1747664497914,9.52,2443.4,2443.1,0.3416899]
[1747664498094,19.174,2443.4,2443.1,4.43477564]
[1747664498299,4.09282527,2443.3,2443.1,0.3416899]
[1747664498600,4.64299279,2443.2,2443.1,0.3416899]
[1747664498798,1.5652,2444.7,2443.1,0.3416899]
[1747664498998,1.77839347,2445.2,2444.1,1.5948]
[1747664499185,1.77839347,2445.2,2444.2,4.09131822]
[1747664499389,9.929,2444.9,2444.3,4.09112952]
[1747664499686,4.09031413,2444.8,2444.1,4.09145201]
[1747664499886,4.09040945,2444.8,2444.1,4.09148139]
[1747664500075,1.5576,2444.6,2443.6,4.09220341]
[1747664500275,19.878,2444.5,2443.7,4.09215533]
[1747664500510,19.878,2444.5,2444.1,4.09140923]
[1747664500709,23.96889184,2444.5,2444.0,4.09157444]
[1747664500869,4.6409952,2444.4,2443.6,0.97177067]
[1747664501075,24.50705944,2444.4,2443.9,4.0916652]
[1747664501288,20.416,2444.4,2444.0,4.09163805]
[1747664501490,19.866,2444.4,2444.1,4.09141207]
[1747664502012,19.866,2444.4,2443.7,4.09214401]
[1747664502199,19.866,2444.4,2442.9,21.77435056]
[1747664502200,4.09157368,2444.1,2443.6,4.092318]
[1747664502371,4.09139423,2444.2,2443.7,4.09212318]
[1747664502574,4.64124521,2444.3,2443.7,4.09203107]
[1747664502777,4.64124521,2444.3,2443.8,4.09197901]
[1747664503313,0.55,2444.0,2443.6,4.09224507]
[1747664503474,0.55,2444.1,2443.7,4.09214758]
[1747664503677,4.64149084,2444.1,2443.6,4.09222819]
[1747664504193,1.6261,2443.9,2443.7,0.34160601]
[1747664504397,21.4331,2443.9,2443.7,0.34160601]
[1747664504721,8.71662257,2444.6,2443.7,1.99310601]
[1747664504880,1.0,2445.0,2444.9,4.09014683]
[1747664506920,1.0,2445.0,2444.9,4.90818966]
[1747664507285,1.0,2445.0,2444.9,4.09014683]
[1747664508222,1.0,2445.0,2444.8,4.09028792]
[1747664508518,1.0,2445.0,2444.6,4.0906309]
[1747664508694,1.0,2445.0,2444.8,4.09023778]
[1747664508921,25.11305986,2445.0,2444.3,1.6423]
[1747664509122,0.55,2444.9,2443.9,1.611]
[1747664509313,4.64056357,2444.7,2444.2,4.09117982]
[1747664509639,0.55,2444.7,2444.3,4.0911454]
[1747664509853,0.55,2444.7,2444.2,4.09116927]
[1747664509854,4.64051083,2444.7,2444.2,4.09116927]
[1747664510414,6.21921132,2444.5,2444.0,4.09155132]
[1747664510611,24.09103766,2444.4,2443.8,4.0919263]
[1747664510837,24.09103766,2444.4,2444.0,4.09164186]
[1747664510838,20.0,2444.4,2444.0,4.09164186]
[1747664511152,4.09123895,2444.3,2443.8,4.09184967]
[1747664511309,0.55,2444.3,2443.3,1.609]
[1747664511511,4.64127688,2444.3,2443.7,4.09199491]
[1747664511707,4.64127688,2444.3,2443.6,4.0922632]
[1747664511708,4.09156021,2444.1,2443.6,4.0922632]
[1747664512246,4.09156021,2444.1,2443.7,0.34160601]
[1747664513453,4.09141223,2444.2,2443.7,4.43375351]
[1747664513610,1.5783,2444.5,2443.7,1.19423028]
[1747664513815,19.944,2444.4,2444.0,4.09156253]
[1747664514035,4.09131822,2444.2,2444.1,0.3415501]
[1747664514245,4.64131822,2444.2,2444.1,0.3415501]
[1747664514966,19.944,2444.4,2444.1,0.3415501]
[1747664515266,0.55,2444.4,2444.1,0.3415501]
[1747664515465,19.927,2444.3,2444.1,0.3415501]
[1747664515665,9.996,2444.2,2444.1,0.3415501]
[1747664515965,14.63731822,2444.2,2444.1,0.3415501]
[1747664516115,10.546,2444.2,2444.1,0.3415501]
[1747664516315,14.63731822,2444.2,2444.1,0.3415501]
[1747664517556,4.64153311,2444.1,2443.6,4.09229749]
[1747664517720,0.55,2444.1,2443.6,4.09230878]
[1747664518050,0.55,2444.1,2443.7,0.34160601]
[1747664518251,4.09166287,2444.0,2443.7,0.34160601]
[1747664518960,4.09198788,2443.8,2443.7,0.34160601]
[1747664519118,14.01598788,2443.8,2443.7,0.34160601]
[1747664519319,32.23698788,2443.8,2443.7,0.34160601]
[1747664520251,33.80748788,2443.8,2443.7,0.34160601]
[1747664521527,4.64341892,2443.0,2442.3,4.09433712]
[1747664521740,4.64368362,2442.8,2442.0,5.64014532]
[1747664521931,9.913,2442.7,2442.4,4.09422313]
[1747664523644,9.913,2442.7,2441.9,5.60332505]
[1747664523840,9.913,2442.7,2442.3,4.09440258]
[1747664524458,9.924,2442.8,2441.9,5.60332505]
[1747664524657,9.871,2442.7,2442.6,4.09387485]
[1747664524826,9.99,2442.9,2442.8,4.093663]
[1747664525156,9.926,2443.3,2442.9,4.09346163]
[1747664525569,14.01891254,2443.3,2442.9,4.09346334]
[1747664525765,9.926,2443.3,2442.9,4.09346334]
[1747664525927,9.926,2443.3,2443.0,4.09330681]
[1747664526124,9.926,2443.3,2442.9,4.09341049]
[1747664526327,14.01890763,2443.3,2442.7,4.09382509]
[1747664526527,9.926,2443.3,2442.9,4.09346926]
[1747664526750,9.926,2443.3,2442.5,5.64864574]
[1747664526751,1.6375,2443.5,2442.5,1.5545]
[1747664526968,1.5648,2443.8,2443.6,4.0921861]
[1747664527170,1.5648,2444.8,2443.7,0.0409224]
[1747664527348,4.09105161,2444.4,2443.9,4.09176753]
[1747664527545,4.09123882,2444.3,2443.8,4.09190473]
[1747664527782,19.788,2444.5,2444.0,4.09157606]
[1747664527973,19.788,2444.5,2444.1,4.09146754]
[1747664528178,19.788,2444.5,2443.8,4.09192975]
[1747664528361,0.55,2444.4,2444.0,4.09164131]
[1747664528561,4.09133636,2444.2,2443.7,4.09209009]
[1747664529001,23.87883531,2444.5,2443.9,4.09181309]
[1747664529179,4.64108213,2444.4,2443.9,4.09181309]
[1747664529392,19.788,2444.5,2443.6,4.09215862]
[1747664529598,23.8789114,2444.5,2444.0,4.0915411]
[1747664530101,0.55,2444.4,2443.4,1.5624]
[1747664530398,1.6148,2444.1,2443.7,4.09209485]
[1747664530763,1.6148,2444.1,2443.5,4.09245768]
[1747664530959,4.0919961,2443.8,2443.1,1.6421]
[1747664531204,4.09188101,2443.9,2443.4,4.09256734]
[1747664531413,4.64201088,2443.8,2443.3,4.0927085]
[1747664531607,4.09208769,2443.8,2443.3,4.09274288]
[1747664532799,19.66,2444.0,2443.2,4.13392088]
[1747664533005,0.55,2443.9,2443.5,4.09236536]
[1747664533384,0.55,2443.9,2443.6,4.09225222]
[1747664533592,10.345,2443.9,2443.6,4.09225222]
[1747664533879,14.43698201,2443.9,2443.1,1.6421]
[1747664534075,4.09217709,2443.7,2443.2,4.09294249]
[1747664534279,4.09277046,2443.4,2442.9,4.09341521]
[1747664534477,2.1381,2443.4,2442.7,1.5687]
[1747664534681,2.1381,2443.4,2442.9,4.09334304]
[1747664534682,11.9141,2443.4,2442.9,4.09334304]
[1747664534880,9.776,2443.4,2443.3,4.09282527]
[1747664535095,9.776,2443.4,2443.2,4.09290817]
[1747664535408,9.776,2443.4,2443.3,4.09282527]
[1747664536610,9.776,2443.4,2443.2,4.09290945]
[1747664537010,9.739,2443.3,2442.7,1.5687]
[1747664537179,9.739,2443.3,2443.1,4.09315451]
[1747664537684,9.739,2443.3,2443.0,4.09322233]
[1747664537891,9.739,2443.3,2443.1,4.09309139]
[1747664538395,9.739,2443.3,2442.7,1.5687]
[1747664538606,9.739,2443.3,2443.1,4.09307854]
[1747664539617,9.739,2443.3,2443.2,4.09299279]
[1747664539775,9.739,2443.3,2443.2,4.02291079]
[1747664539976,9.838,2443.5,2443.4,4.09265777]
[1747664540510,9.838,2443.5,2442.8,4.09349679]
[1747664540711,4.64265897,2443.4,2443.0,4.0932589]
[1747664540912,9.838,2443.5,2442.8,4.093663]
[1747664541224,9.838,2443.5,2443.3,4.0927399]
[1747664541427,9.838,2443.5,2443.4,4.09265777]
[1747664541628,9.838,2443.5,2442.9,4.22135414]
[1747664541783,9.838,2443.5,2443.2,4.09291523]
[1747664541980,9.838,2443.5,2443.1,4.09307825]
[1747664542179,13.93055886,2443.5,2442.9,4.09339437]
[1747664542403,13.93049915,2443.5,2443.1,4.09306434]
[1747664542802,9.838,2443.5,2443.1,4.09306434]
[1747664542977,9.838,2443.5,2443.2,4.09296868]
[1747664543180,9.78335859,2443.5,2443.2,4.09296868]
[1747664543404,9.78335859,2443.5,2443.2,4.09295238]
[1747664544206,9.78335859,2443.5,2442.7,1.5687]
[1747664544517,0.55,2443.4,2442.8,4.09358456]
[1747664544692,0.55,2443.4,2442.9,4.09340879]
[1747664544693,4.6427487,2443.4,2442.9,4.09340879]
[1747664545017,9.67,2443.6,2442.8,0.12786296]
[1747664545230,9.838,2443.7,2442.9,4.09349543]
[1747664545415,19.505,2443.7,2443.6,4.0923228]
[1747664545597,19.505,2443.7,2443.1,4.09316032]
[1747664545794,9.838,2443.7,2443.5,4.09242049]
[1747664545997,9.838,2443.7,2443.1,0.42210136]
[1747664546198,9.838,2443.7,2443.4,4.09252899]
[1747664546815,9.838,2443.7,2443.5,4.09248198]
[1747664547029,9.641,2443.9,2443.8,4.09193744]
[1747664547222,9.838,2444.3,2443.9,4.09166083]
[1747664547423,9.635,2444.2,2444.0,4.09162818]
[1747664547743,9.635,2444.2,2444.1,4.09148561]
[1747664548107,11.3548,2444.7,2444.3,4.09112058]
[1747664548416,25.075298,2444.7,2444.2,4.09124601]
[1747664548607,4.09097883,2444.5,2443.9,4.09166908]
[1747664548951,9.624,2444.4,2444.0,4.09150864]